bitfinex/quotes_SOLUSD_20260211
["timestamp","ask_amount","ask_price","bid_price","bid_amount"]
[1770776659311,13.65505447,84.297,84.268,1.81306492]
[1770776659516,1.79223611,84.296,84.268,1.81306492]
[1770776660308,1.72609529,84.289,84.263,11.86757539]
[1770776660814,1.72609529,84.287,84.262,11.86774584]
[1770776661315,1.72609529,84.287,84.261,1.69220034]
[1770776661607,1.72609529,84.287,84.26,59.9]
[1770776661806,1.72609529,84.287,84.254,1.69220034]
[1770776663013,1.72609529,84.285,84.256,11.86849632]
[1770776663397,1.72609529,84.285,84.257,1.69220034]
[1770776663709,17.10350655,84.29,84.257,1.69220034]
[1770776663911,1.77486527,84.289,84.257,1.69220034]
[1770776665100,1.77486527,84.279,84.255,59.9]
[1770776665613,1.77486527,84.297,84.261,1.83147018]
[1770776665813,1.77486527,84.297,84.262,59.92]
[1770776665999,1.77486527,84.297,84.263,1.83147018]
[1770776667412,1.77486527,84.297,84.265,1.83147018]
[1770776668810,29.65256654,84.31,84.271,1.83147018]
[1770776668811,1.77486527,84.305,84.271,1.83147018]
[1770776669120,1.77486527,84.316,84.281,1.83147018]
[1770776669303,1.77486527,84.316,84.285,1.83147018]
[1770776669523,1.77486527,84.316,84.291,1.83147018]
[1770776672746,1.77486527,84.332,84.301,1.83147018]
[1770776674318,1.77486527,84.319,84.287,11.86415254]
[1770776674526,1.77486527,84.317,84.282,11.86483622]
[1770776675837,1.77486527,84.315,84.282,1.83147018]
[1770776677338,1.77486527,84.315,84.278,1.83147018]
[1770776677521,1.77486527,84.309,84.278,1.83147018]
[1770776677720,1.77486527,84.307,84.28,1.83147018]
[1770776679843,1.77486527,84.307,84.27,3.46480755]
[1770776680049,1.77486527,84.305,84.274,1.83147018]
[1770776681452,1.77486527,84.303,84.275,11.86578798]
[1770776683048,1.77486527,84.301,84.275,11.86578798]
[1770776684727,1.77486527,84.301,84.271,1.83147018]
[1770776684937,1.77486527,84.297,84.271,1.83147018]
[1770776685240,1.77486527,84.289,84.251,1.83147018]
[1770776686366,1.77486527,84.289,84.256,1.83147018]
[1770776687236,11.86408504,84.288,84.256,1.83147018]
[1770776687435,1.77486527,84.287,84.256,1.83147018]
[1770776688049,1.77486527,84.287,84.261,1.83147018]
[1770776690271,1.71401042,84.285,84.261,1.83147018]
[1770776692860,1.71401042,84.285,84.26,11.86792733]
[1770776693045,1.71401042,84.283,84.255,11.86860103]
[1770776693660,1.71401042,84.283,84.256,1.71213768]
[1770776694545,1.71401042,84.283,84.25,1.71213768]
[1770776694739,1.71401042,84.281,84.25,1.71213768]
[1770776695054,1.71401042,84.281,84.251,1.71213768]
[1770776696938,1.71401042,84.281,84.25,3.46480755]
[1770776696939,1.71401042,84.287,84.253,1.71213768]
[1770776699762,1.71401042,84.285,84.255,1.71213768]
[1770776701768,1.71401042,84.283,84.246,59.94]
[1770776702076,1.71401042,84.259,84.222,11.87324425]
[1770776702362,3.46480755,84.26,84.203,59.96]
[1770776702363,1.71401042,84.249,84.216,11.87415722]
[1770776702760,1.71401042,84.239,84.203,59.96]
[1770776702965,1.71401042,84.229,84.194,1.71213768]
[1770776703143,1.71401042,84.229,84.201,1.71213768]
[1770776703465,1.71401042,84.252,84.22,3.46480755]
[1770776703648,1.71401042,84.252,84.221,1.71213768]
[1770776704257,1.71401042,84.252,84.223,1.71213768]
[1770776704461,11.86846509,84.257,84.231,1.71213768]
[1770776705060,13.58247551,84.257,84.231,1.71213768]
[1770776705260,1.71401042,84.256,84.231,1.71213768]
[1770776707373,11.86873182,84.255,84.231,1.71213768]
[1770776707574,13.58274224,84.255,84.231,1.71213768]
[1770776707957,1.71401042,84.254,84.231,1.71213768]
[1770776709470,1.71401042,84.254,84.22,3.46480755]
[1770776709471,1.71401042,84.254,84.233,1.71213768]
[1770776712657,3.46480755,84.28,84.221,121.86]
[1770776712658,1.71401042,84.261,84.235,1.71213768]
[1770776713063,1.71401042,84.261,84.237,1.71213768]
[1770776716170,11.8674712,84.264,84.237,1.71213768]
[1770776716171,1.71401042,84.259,84.237,1.71213768]
[1770776716366,1.71401042,84.259,84.231,11.87211359]
[1770776716564,1.71401042,84.259,84.231,13.58425127]
[1770776717462,1.71401042,84.259,84.232,1.71213768]
[1770776718362,1.71401042,84.257,84.225,61.9]
[1770776718566,29.66706809,84.269,84.225,61.9]
[1770776718567,1.71401042,84.249,84.225,61.9]
[1770776719561,1.71401042,84.249,84.217,61.81213768]
[1770776719764,1.71401042,84.249,84.211,1.71213768]
[1770776720481,1.70488171,84.237,84.208,60.16]
[1770776721066,1.70488171,84.237,84.21,1.78878571]
[1770776721972,1.70488171,84.249,84.211,1.78878571]
[1770776722387,1.70488171,84.249,84.209,41.56325332]
[1770776722388,13.57464801,84.248,84.221,1.78878571]
[1770776722965,1.70488171,84.247,84.221,1.78878571]
[1770776724463,1.70488171,84.247,84.222,11.87338225]
[1770776725268,1.70546051,84.259,84.23,3.47011519]
[1770776725478,1.70546051,84.259,84.231,1.85011951]
[1770776726393,1.70546051,84.259,84.232,1.85011951]
[1770776727387,1.70546051,84.259,84.234,1.85011951]
[1770776728094,1.70546051,84.259,84.233,11.8718317]
[1770776728095,1.70546051,84.279,84.241,1.85011951]
[1770776728292,1.70546051,84.289,84.26,3.47011519]
[1770776728472,1.70546051,84.289,84.261,1.85011951]
[1770776729389,1.70546051,84.287,84.261,1.85011951]
[1770776729690,1.70546051,84.279,84.246,11.8698942]
[1770776730394,1.70546051,84.279,84.245,11.87010214]
[1770776730890,1.58673796,84.279,84.246,1.85011951]
[1770776731496,11.86549277,84.278,84.247,11.86985886]
[1770776732491,3.47011519,84.27,84.24,62.17011951]
[1770776732696,3.47011519,84.27,84.24,1.85011951]
[1770776732989,1.70546051,84.269,84.24,1.85011951]
[1770776733378,1.70546051,84.267,84.241,1.85011951]
[1770776734397,1.70546051,84.267,84.242,1.85011951]
[1770776736195,1.70546051,84.265,84.242,1.85011951]
[1770776739192,1.70546051,84.263,84.237,74.04137517]
[1770776739500,1.70546051,84.263,84.238,1.85011951]
[1770776746293,1.70546051,84.263,84.239,11.87098612]
[1770776746493,1.70546051,84.263,84.239,13.72110563]
[1770776747904,1.70546051,84.263,84.239,11.87098612]
[1770776748223,1.70546051,84.263,84.24,1.85011951]
[1770776753807,1.70546051,84.263,84.242,1.70281395]
[1770776755190,13.57311372,84.263,84.242,1.70281395]
[1770776755511,1.77903448,84.262,84.242,1.70281395]
[1770776756914,1.77903448,84.262,84.238,60.72]
[1770776757414,1.77903448,84.261,84.238,60.72]
[1770776757607,1.77903448,84.261,84.239,11.87098612]
[1770776757910,1.77903448,84.261,84.24,1.70281395]
[1770776759511,1.77903448,84.266,84.242,1.70281395]
[1770776760816,1.77903448,84.271,84.242,1.70281395]
[1770776761709,1.77903448,84.271,84.24,76.34085439]
[1770776761710,1.77903448,84.27,84.244,1.70281395]
[1770776762013,1.77903448,84.27,84.24,61.0]
[1770776762901,1.77903448,84.269,84.24,61.0]
[1770776763504,1.77903448,84.269,84.241,1.70281395]
[1770776766323,1.77903448,84.267,84.241,1.70281395]
[1770776769321,13.64621697,84.266,84.241,1.70281395]
[1770776769520,11.86654859,84.271,84.243,1.70281395]
[1770776769722,1.77903448,84.27,84.243,1.70281395]
[1770776770822,1.77903448,84.289,84.251,1.70281395]
[1770776771021,1.77903448,84.294,84.261,1.70281395]
[1770776771521,1.77903448,84.293,84.263,1.70281395]
[1770776772421,1.77903448,84.293,84.264,11.86746416]
[1770776772617,1.77903448,84.289,84.253,1.70281395]
[1770776772824,1.77903448,84.289,84.255,1.70281395]
[1770776774109,1.77903448,84.289,84.258,1.70281395]
[1770776774330,1.77903448,84.299,84.265,1.70281395]
[1770776774623,1.77903448,84.299,84.267,1.70281395]
[1770776774811,11.86267764,84.298,84.271,1.70281395]
[1770776775010,13.64171212,84.298,84.271,1.70281395]
[1770776775709,11.86167053,84.306,84.281,1.70281395]
[1770776777906,1.77903448,84.305,84.281,1.70281395]
[1770776781422,1.80708816,84.303,84.28,61.3]
[1770776781627,1.80708816,84.299,84.28,61.3]
[1770776783411,1.80708816,84.299,84.276,1.69926364]
[1770776784924,1.80955879,84.314,84.281,1.75921951]
[1770776785236,1.80955879,84.314,84.282,1.75921951]
[1770776785537,1.80955879,84.313,84.283,1.75921951]
[1770776786321,1.80955879,84.311,84.284,1.75921951]
[1770776787240,3.46406457,84.32,84.284,1.75921951]
[1770776787435,11.85972319,84.319,84.291,1.75921951]
[1770776787618,1.80955879,84.318,84.291,1.75921951]
[1770776789833,1.80955879,84.316,84.291,1.75921951]
[1770776792122,1.80955879,84.314,84.291,1.75921951]
[1770776792361,3.46406457,84.31,84.282,61.48]
[1770776792526,1.80955879,84.309,84.283,1.75921951]
[1770776792833,1.80955879,84.314,84.287,1.75921951]
[1770776793261,1.80955879,84.314,84.291,1.75921951]
[1770776793448,1.80955879,84.319,84.291,1.75921951]
[1770776795855,1.80955879,84.317,84.291,1.75921951]
[1770776796446,1.80955879,84.317,84.292,1.75921951]
[1770776799120,66.94,84.334,84.294,1.75921951]
[1770776799121,1.80955879,84.324,84.294,1.75921951]
[1770776799321,1.90955879,84.35,84.311,1.75921951]
[1770776799538,1.90955879,84.35,84.321,1.75921951]
[1770776799724,11.85171141,84.376,84.341,1.75921951]
[1770776799924,1.80955879,84.375,84.341,1.75921951]
[1770776800733,1.80955879,84.375,84.351,1.75921951]
[1770776804741,11.85199231,84.374,84.351,1.75921951]
[1770776805637,13.6615511,84.374,84.351,1.75921951]
[1770776806751,1.80955879,84.373,84.351,1.75921951]
[1770776807053,1.80955879,84.373,84.35,3.46406457]
[1770776807266,1.80955879,84.373,84.35,5.22328408]
[1770776807545,1.80955879,84.373,84.351,1.75921951]
[1770776808259,1.80955879,84.373,84.35,3.46406457]
[1770776809651,1.80955879,84.373,84.351,1.75921951]
[1770776810148,11.85227326,84.372,84.351,1.75921951]
[1770776810352,1.79610998,84.371,84.351,1.75921951]
[1770776810656,1.79610998,84.371,84.35,3.46406457]
[1770776812764,3.46406457,84.36,84.342,61.9]
[1770776812962,1.79610998,84.359,84.342,61.9]
[1770776813142,1.79610998,84.359,84.332,1.64852955]
[1770776813752,1.79610998,84.357,84.332,1.64852955]
[1770776815247,1.79610998,84.357,84.334,1.64852955]
[1770776815558,11.85199176,84.375,84.351,1.64852955]
[1770776815945,1.79610998,84.374,84.351,1.64852955]
[1770776816343,1.79610998,84.374,84.345,1.64852955]
[1770776818553,1.79610998,84.369,84.339,1.64852955]
[1770776818773,1.79610998,84.369,84.341,1.64852955]
[1770776820078,3.56406457,84.38,84.351,1.64852955]
[1770776820079,1.79610998,84.375,84.351,1.64852955]
[1770776820676,1.79610998,84.375,84.335,61.82]
[1770776820677,0.1,84.38,84.361,1.64852955]
[1770776821375,0.1,84.39,84.371,1.64852955]
[1770776823355,11.84786161,84.404,84.381,1.64852955]
[1770776823752,1.79610998,84.417,84.381,1.64852955]
[1770776824068,1.79610998,84.417,84.391,1.64852955]
[1770776824262,1.79610998,84.417,84.372,41.48295642]
[1770776824263,1.79610998,84.428,84.401,1.64852955]
[1770776824677,1.79610998,84.428,84.391,1.64852955]
[1770776825359,1.79610998,84.426,84.401,1.64852955]
[1770776825756,1.79610998,84.426,84.392,61.84]
[1770776826358,1.79610998,84.426,84.401,1.64852955]
[1770776826965,1.79610998,84.426,84.392,61.84]
[1770776827170,1.79610998,84.419,84.379,11.85118707]
[1770776827481,1.79610998,84.409,84.375,61.84]
[1770776828171,1.79610998,84.409,84.376,1.64852955]
[1770776829853,1.79610998,84.407,84.375,61.84]
[1770776830373,1.79610998,84.407,84.376,1.64852955]
[1770776831282,1.79610998,84.407,84.365,29.63294634]
[1770776831283,1.79610998,84.389,84.351,1.64852955]
[1770776831578,1.79610998,84.389,84.355,11.8546159]
[1770776831765,1.79610998,84.389,84.356,1.64852955]
[1770776832877,1.79610998,84.379,84.341,1.64852955]
[1770776833075,1.79610998,84.379,84.342,1.64852955]
[1770776833790,1.79610998,84.377,84.344,1.64852955]
[1770776834970,1.79610998,84.377,84.336,73.71728872]
[1770776835268,1.79610998,84.377,84.34,11.85672954]
[1770776835474,41.48000662,84.378,84.34,11.85672954]
[1770776835475,3.46406457,84.37,84.34,11.85672954]
[1770776835663,1.79610998,84.369,84.34,11.85672954]
[1770776835994,1.79610998,84.367,84.337,11.85719197]
[1770776836178,1.79610998,84.367,84.338,1.64852955]
[1770776837777,1.79610998,84.367,84.33,15.32219761]
[1770776837778,1.79610998,84.358,84.328,61.84]
[1770776837967,1.79610998,84.358,84.329,1.64852955]
[1770776838375,1.79610998,84.358,84.33,1.64852955]
[1770776838581,1.79610998,84.349,84.321,11.85939212]
[1770776838788,1.79610998,84.356,84.322,1.64852955]
[1770776839783,1.79610998,84.356,84.327,1.64852955]
[1770776840181,1.72483555,84.354,84.327,1.64852955]
[1770776840561,1.72483555,84.354,84.329,1.73175954]
[1770776840774,1.72483555,84.354,84.331,1.73175954]
[1770776841365,1.72483555,84.368,84.331,1.73175954]
[1770776841568,1.72483555,84.368,84.333,1.73175954]
[1770776841981,1.72483555,84.366,84.333,1.73175954]
[1770776842701,1.72483555,84.382,84.351,1.73175954]
[1770776843282,1.72483555,84.379,84.351,1.73175954]
[1770776843776,1.76429073,84.369,84.32,3.45790767]
[1770776843977,1.76429073,84.359,84.322,1.72511549]
[1770776844288,1.76429073,84.359,84.33,1.72511549]
[1770776845580,1.76429073,84.377,84.341,1.72511549]
[1770776845771,1.76429073,84.377,84.322,29.64823918]
[1770776845772,1.76429073,84.369,84.333,11.8576413]
[1770776845978,1.76429073,84.369,84.334,1.72511549]
[1770776846977,1.76429073,84.359,84.321,1.72511549]
[1770776847165,1.76429073,84.359,84.327,1.72511549]
[1770776847974,1.76429073,84.357,84.331,1.72511549]
[1770776851493,1.76429073,84.355,84.331,1.72511549]
[1770776851895,11.85452131,84.356,84.318,61.86]
[1770776851896,1.76429073,84.349,84.318,61.86]
[1770776852193,1.76429073,84.349,84.31,3.45790767]
[1770776852694,1.76429073,84.349,84.312,11.8606603]
[1770776853983,1.76429073,84.347,84.313,0.53172964]
[1770776855480,1.76429073,84.339,84.313,0.53172964]
[1770776855879,1.76429073,84.339,84.297,29.65674774]
[1770776855880,1.76429073,84.329,84.298,0.53123788]
[1770776856487,1.76429073,84.319,84.286,11.86436254]
[1770776856697,1.76429073,84.309,84.285,0.53099438]
[1770776859799,1.76429073,84.307,84.285,0.53099438]
[1770776862889,1.76429073,84.305,84.285,0.53099438]
[1770776863288,1.76429073,84.303,84.272,0.52939766]
[1770776863495,1.76429073,84.299,84.272,0.52939766]
[1770776863693,1.76429073,84.308,84.282,0.52939766]
[1770776863988,1.76429073,84.308,84.28,3.45790767]
[1770776864285,1.76429073,84.308,84.276,12.39485561]
[1770776864286,1.76429073,84.308,84.276,0.52918729]
[1770776865606,1.76429073,84.306,84.276,0.52918729]
[1770776866198,1.76429073,84.299,84.264,0.52879139]
[1770776867200,1.76429073,84.299,84.266,11.8671706]
[1770776867402,1.76429073,84.299,84.267,0.5285881]
[1770776869404,1.76429073,84.297,84.26,3.65790767]
[1770776869603,1.76429073,84.297,84.261,0.52821412]
[1770776870315,1.76429073,84.297,84.265,11.86727355]
[1770776870490,1.76429073,84.297,84.266,0.52782273]
[1770776871396,1.76429073,84.297,84.261,62.06]
[1770776871397,1.7098393,84.295,84.268,0.52763896]
[1770776876417,1.7098393,84.293,84.268,0.52763896]
[1770776882103,1.7098393,84.291,84.263,61.9]
[1770776882414,1.7098393,84.289,84.26,0.2]
[1770776883020,1.7098393,84.279,84.24,3.66515243]
[1770776883330,1.7098393,84.269,84.24,0.2]
[1770776884317,1.7098393,84.267,84.24,0.2]
[1770776884516,1.7098393,84.309,84.261,0.72562995]
[1770776884723,29.65247301,84.31,84.271,0.72562995]
[1770776884724,1.7098393,84.306,84.271,0.72562995]
[1770776886619,1.7098393,84.304,84.271,0.72562995]
[1770776887117,1.7098393,84.304,84.273,0.72559082]
[1770776888417,1.7098393,84.304,84.275,0.72553599]
[1770776889426,1.7098393,84.299,84.262,0.72549096]
[1770776891308,1.7098393,84.297,84.262,0.72549096]
[1770776891904,1.7098393,84.317,84.271,0.72543077]
[1770776892222,1.7098393,84.317,84.281,0.72543077]
[1770776892617,1.7098393,84.309,84.281,0.72543077]
[1770776893610,1.7098393,84.307,84.281,0.72543077]
[1770776893811,11.86127057,84.308,84.264,61.9]
[1770776893812,13.57040905,84.313,84.283,0.72538587]
[1770776894433,1.7098393,84.312,84.283,0.72538587]
[1770776895420,1.7098393,84.312,84.284,0.7253322]
[1770776895734,3.46515243,84.32,84.286,0.7253322]
[1770776895907,94.81250128,84.378,84.3,3.46515243]
[1770776895908,1.7098393,84.328,84.3,3.46515243]
[1770776896231,1.7098393,84.328,84.295,0.7253322]
[1770776897327,11.85768338,84.334,84.301,0.72529664]
[1770776897530,1.7098393,84.34,84.311,0.72529664]
[1770776897728,1.7098393,84.339,84.303,0.72529664]
[1770776898230,1.7098393,84.347,84.321,0.72525953]
[1770776898436,1.7098393,84.353,84.321,0.72525953]
[1770776899217,1.7098393,84.351,84.321,0.72525953]
[1770776900531,1.61008435,84.349,84.321,0.72525953]
[1770776901117,1.61008435,84.349,84.322,0.72509586]
[1770776904535,1.61008435,84.349,84.323,11.8591606]
[1770776904737,1.61008435,84.349,84.324,0.72497965]
[1770776905131,1.6523163,84.354,84.324,0.72497965]
[1770776905515,5.13032502,84.367,84.312,29.651531]
[1770776905516,1.6523163,84.36,84.333,0.72495542]
[1770776905849,1.6523163,84.359,84.333,0.72495542]
[1770776907123,1.6523163,84.359,84.326,62.28]
[1770776908236,1.6523163,84.357,84.326,62.28]
[1770776914720,1.6523163,84.355,84.327,0.72475579]
[1770776914919,1.6523163,84.355,84.331,0.72475579]
[1770776917043,1.6523163,84.353,84.331,0.72475579]
[1770776918529,1.6523163,84.351,84.331,0.72475579]
[1770776920646,1.6523163,84.351,84.326,63.00460386]
[1770776921146,1.6523163,84.351,84.327,0.72459]
[1770776922943,11.85536455,84.35,84.326,62.28]
[1770776923143,1.6523163,84.349,84.323,61.9]
[1770776925144,1.6523163,84.349,84.322,62.8]
[1770776925145,1.6523163,84.347,84.322,62.8]
[1770776928242,1.6523163,84.345,84.314,0.72448824]
[1770776928442,1.6523163,84.345,84.316,0.72444236]
[1770776928648,1.6523163,84.345,84.321,0.72444236]
[1770776930137,1.6523163,84.345,84.313,62.98]
[1770776930332,1.60845371,84.343,84.314,0.72446145]
[1770776931048,1.60845371,84.343,84.315,0.72446145]
[1770776932253,1.60845371,84.343,84.321,0.72444208]
[1770776932756,13.46494276,84.342,84.321,0.72444208]
[1770776932949,1.60845371,84.351,84.323,0.72444208]
[1770776934256,1.60845371,84.349,84.323,0.72444208]
[1770776936358,11.85564565,84.348,84.323,0.72444208]
[1770776936568,1.60845371,84.347,84.323,0.72444208]
[1770776937441,1.60845371,84.345,84.313,61.9]
[1770776937640,1.60845371,84.345,84.313,125.08]
[1770776938071,1.60845371,84.339,84.313,125.08]
[1770776940273,1.60845371,84.338,84.313,61.9]
[1770776940445,1.60845371,84.338,84.314,11.8604265]
[1770776941676,1.60845371,84.338,84.315,0.72431503]
[1770776941858,1.60845371,84.337,84.313,61.9]
[1770776942247,1.60845371,84.337,84.313,62.62430374]
[1770776942453,1.60845371,84.335,84.313,0.72430374]
[1770776943164,1.60845371,84.348,84.314,0.72430939]
[1770776944372,5.13032502,84.316,84.249,1.77916095]
[1770776944571,3.46015026,84.29,84.251,1.77916095]
[1770776944867,64.3,84.315,84.271,1.77916095]
[1770776945067,3.46015026,84.31,84.273,1.77916095]
[1770776946359,11.86112989,84.309,84.273,1.77916095]
[1770776948385,3.46015026,84.3,84.273,1.77916095]
[1770776948552,3.46015026,84.31,84.273,1.77916095]
[1770776949189,0.0239148,84.309,84.273,1.77916095]
[1770776949552,3.46015026,84.3,84.273,1.77916095]
[1770776950662,11.86231249,84.301,84.273,1.77916095]
[1770776952358,0.0239148,84.303,84.273,1.77916095]
[1770776953473,13.0477214,84.309,84.273,1.77916095]
[1770776953678,13.0477214,84.309,84.281,1.77916095]
[1770776956564,1.18659151,84.315,84.283,1.77916095]
[1770776956763,1.18659151,84.315,84.291,1.77916095]
[1770776957780,11.85946245,84.321,84.291,1.77916095]
[1770776958579,1.18659151,84.336,84.301,1.77916095]
[1770776958761,11.92138529,84.334,84.301,1.77916095]
[1770776958960,1.25028315,84.333,84.301,1.77916095]
[1770776960258,0.07604527,84.331,84.301,1.77916095]
[1770776960584,0.07604527,84.33,84.301,1.77916095]
[1770776962981,11.93422148,84.33,84.301,1.77916095]
[1770776963180,0.08799149,84.329,84.301,1.77916095]
[1770776965379,0.09951184,84.336,84.301,1.77916095]
[1770776965567,0.09951184,84.335,84.301,1.77916095]
[1770776965774,0.09951184,84.333,84.301,1.77916095]
[1770776966077,0.09951184,84.331,84.301,1.77916095]
[1770776966387,0.10326764,84.329,84.301,1.77916095]
[1770776968782,0.10326764,84.329,84.303,1.77916095]
[1770776971985,0.12140223,84.331,84.303,1.77916095]
[1770776972295,0.12490966,84.33,84.303,1.77916095]
[1770776972993,0.12490966,84.329,84.303,1.77916095]
[1770776973886,1.18659151,84.328,84.303,1.77916095]
[1770776974079,0.12837589,84.327,84.303,1.77916095]
[1770776974279,1.18659151,84.326,84.303,1.77916095]
[1770776974871,11.85887933,84.325,84.303,1.77916095]
[1770776975073,0.13180209,84.323,84.303,1.77916095]
[1770776975282,1.18659151,84.322,84.303,1.77916095]
[1770776976180,1.18659151,84.324,84.303,1.77916095]
[1770776977294,11.8591606,84.323,84.303,1.77916095]
[1770776977497,1.18659151,84.322,84.303,1.77916095]
[1770776979183,1.32178206,84.328,84.303,1.77916095]
[1770776980600,12.01013306,84.327,84.303,1.77916095]
[1770776980913,1.18659151,84.326,84.303,1.77916095]
[1770776982599,12.0166811,84.325,84.303,1.77916095]
[1770776982798,1.18659151,84.324,84.303,1.77916095]
[1770776983701,1.34750856,84.324,84.303,1.77916095]
[1770776983902,1.18659151,84.324,84.303,1.77916095]
[1770776985606,11.8591606,84.323,84.303,1.77916095]
[1770776985786,1.18659151,84.322,84.303,1.77916095]
[1770776987398,0.17290175,84.321,84.303,1.77916095]
[1770776987602,1.18659151,84.32,84.303,1.77916095]
[1770776989305,1.35949326,84.321,84.303,1.77916095]
[1770776989503,0.17290175,84.321,84.303,1.77916095]
[1770776990297,11.85944189,84.321,84.303,1.77916095]
[1770776991505,1.18659151,84.326,84.303,1.77916095]
[1770776991707,11.85809428,84.331,84.311,1.77916095]
[1770776991907,1.18659151,84.334,84.311,1.77916095]
[1770776992104,11.85803559,84.331,84.311,1.77916095]
[1770776992405,0.18990422,84.33,84.311,1.77916095]
[1770776993914,0.19263032,84.329,84.311,1.77916095]
[1770776994202,0.19532481,84.327,84.284,1.77916095]
[1770776994407,0.19532481,84.319,84.284,1.77916095]
[1770776994582,3.46207553,84.32,84.284,1.77916095]
[1770776994583,0.19532481,84.317,84.284,1.77916095]
[1770776994783,0.19532481,84.315,84.284,1.77916095]
[1770776994990,0.19532481,84.313,84.284,1.77916095]
[1770776996089,0.19800261,84.312,84.284,1.77916095]
[1770776996412,0.20063932,84.326,84.291,1.77916095]
[1770776996710,1.18659151,84.325,84.291,1.77916095]
[1770776996913,1.18659151,84.327,84.301,1.77916095]
[1770776997205,11.85774945,84.334,84.311,1.77916095]
[1770776997401,1.18659151,84.333,84.311,1.77916095]
[1770776997809,11.85774945,84.334,84.311,1.77916095]
[1770776998301,0.20578779,84.331,84.311,1.77916095]
[1770776998505,0.20578779,84.329,84.301,1.77916095]
[1770776998805,1.18659151,84.328,84.301,1.77916095]
[1770776999813,11.85859807,84.327,84.301,1.77916095]
[1770777000015,1.18659151,84.326,84.301,1.77916095]
[1770777000794,1.18659151,84.326,84.294,63.86]
[1770777000795,0.21083187,84.361,84.321,1.77916095]
[1770777001008,0.21083187,84.379,84.351,1.77916095]
[1770777001202,11.85143046,84.378,84.36,5.24269794]
[1770777001407,11.84990034,84.389,84.361,1.77916095]
[1770777001611,0.21329572,84.388,84.361,1.77916095]
[1770777001912,0.21329572,84.377,84.341,1.77916095]
[1770777002308,41.48000662,84.378,84.341,1.77916095]
[1770777002309,0.21572203,84.369,84.341,1.77916095]
[1770777002510,0.21572203,84.369,84.335,1.77916095]
[1770777003105,0.21812015,84.359,84.335,1.77916095]
[1770777003308,0.21812015,84.359,84.331,1.77916095]
[1770777003521,5.13032502,84.375,84.324,1.77916095]
[1770777003522,0.21812015,84.349,84.324,1.77916095]
[1770777004324,11.85564565,84.348,84.324,1.77916095]
[1770777004519,63.86,84.364,84.324,1.77916095]
[1770777004520,0.2205202,84.363,84.324,1.77916095]
[1770777004724,29.63191334,84.369,84.341,1.77916095]
[1770777004725,11.85269471,84.369,84.341,1.77916095]
[1770777005813,29.62703975,84.383,84.351,1.77916095]
[1770777006007,11.85129001,84.379,84.351,1.77916095]
[1770777008026,11.84988564,84.389,84.353,1.77916095]
[1770777008208,11.84988564,84.389,84.361,1.77916095]
[1770777011013,0.1,84.39,84.371,1.77916095]
[1770777013818,0.24063273,84.379,84.321,1.77916095]
[1770777014014,0.24063273,84.369,84.334,1.77916095]
[1770777015309,11.85129001,84.379,84.342,11.85648905]
[1770777015624,0.1,84.39,84.342,11.85648905]
[1770777015625,0.1,84.39,84.361,1.77916095]
[1770777016115,11.84988564,84.389,84.361,1.77916095]
[1770777016627,12.09677325,84.389,84.361,1.77916095]
[1770777017011,1.53347913,84.379,84.342,11.85648905]
[1770777017728,1.53649926,84.377,84.342,11.85648905]
[1770777018310,1.53951034,84.369,84.342,11.85648905]
[1770777018516,1.53951034,84.369,84.333,11.85768859]
[1770777018938,1.53951034,84.369,84.334,1.69385323]
[1770777020328,1.54826057,84.367,84.334,1.69385323]
[1770777023437,11.85311618,84.366,84.334,1.69385323]
[1770777023737,11.85311618,84.366,84.312,1.86803133]
[1770777023738,1.55717156,84.359,84.312,1.86803133]
[1770777023935,1.55717156,84.359,84.323,1.86803133]
[1770777024139,1.55717156,84.359,84.327,1.86803133]
[1770777025541,1.5603715,84.357,84.327,1.86803133]
[1770777027839,3.46062521,84.35,84.327,1.86803133]
[1770777028038,1.56349988,84.349,84.327,1.86803133]
[1770777031046,11.85564565,84.348,84.327,1.86803133]
[1770777031251,13.42520031,84.348,84.327,1.86803133]
[1770777033848,1.57243344,84.347,84.327,1.86803133]
[1770777035741,1.57526623,84.345,84.322,63.76803133]
[1770777035941,1.57526623,84.345,84.322,61.9]
[1770777036144,1.57526623,84.345,84.321,1.86803133]
[1770777039044,11.85620791,84.344,84.321,1.86803133]
[1770777043345,1.58603274,84.344,84.321,1.86803133]
[1770777044733,1.587302,84.339,84.314,1.86803133]
[1770777045652,1.58856176,84.337,84.309,63.76]
[1770777045969,1.58856176,84.337,84.31,1.86803133]
[1770777046838,11.85705138,84.338,84.31,1.86803133]
[1770777047441,11.85705138,84.338,84.311,1.86803133]
[1770777047760,41.49475979,84.348,84.311,1.86803133]
[1770777049246,43.08818297,84.348,84.311,1.86803133]
[1770777049448,1.59342318,84.347,84.311,1.86803133]
[1770777051363,1.59697093,84.339,84.311,1.86803133]
[1770777052066,11.85592677,84.346,84.321,1.77119181]
[1770777053865,1.5992672,84.35,84.321,1.77119181]
[1770777054656,1.78023814,84.339,84.313,61.9]
[1770777056764,1.78023814,84.337,84.314,1.77119181]
[1770777058156,11.85733257,84.336,84.314,1.77119181]
[1770777059977,1.78023814,84.336,84.314,1.77119181]
[1770777060349,63.12,84.364,84.314,1.77119181]